Cogmind - Beta 16 @@@ ROGUE MODE // 2025.11.02 @ 08:31:26 Player: calciume Result: Destroyed by Y-54 Guardian with Gatling Laser Performance ------------- Evolutions (4) 2000 Regions Visited (4) 800 Robots Destroyed (7) 35 Value Destroyed (326) 326 Prototype IDs (3) 60 Alien Tech Used (0) 0 Bonus (-18) -18 TOTAL SCORE: 3203 Bonus ------- Friendly Fire -18 Cogmind --------- Core Integrity 0/850 Matter 166/300 Energy 99/100 System Corruption 0% Temperature Cool (6) Movement Core (50) Location -6/Factory Parts ------- > --- POWER (2) -------- (None) > --- PROPULSION (4) --- (None) > --- UTILITY (6) ------ (None) > --- WEAPON (3) ------- (None) > --- INVENTORY (5) ---- Improved Deuterium Engine Improved Deuterium Engine Weapon Shielding High-powered Shock Rifle Heavy Flak Cannon Peak State ------------ > --- POWER ------------ Improved Deuterium Engine > --- PROPULSION ------- Light Treads Light Treads > --- UTILITY ---------- Advanced Signal Interpreter Improved Terrain Scan Processor > --- WEAPON ----------- Heavy Flak Cannon Heavy Flak Cannon Heavy Flak Cannon > --- INVENTORY -------- Improved Deuterium Engine Improved Deuterium Engine Weapon Shielding Gatling Laser [Rating: 30] Favorites ----------- Power Light Ion Engine Engine Light Ion Engine Propulsion Aluminum Leg Treads Light Treads Leg Aluminum Leg Wheel Wheel Flight Unit Biomechanical Wings Utility Light Armor Plating Device Improved Shield Generator Storage Medium Storage Unit Processor Visual Processing Unit Hackware Hacking Suite Protection Light Armor Plating Weapon Particle Gun Energy Gun Particle Gun Ballistic Gun High-powered Shotgun Ballistic Cannon Heavy Flak Cannon Launcher Rocket Launcher Build | -11 -10 -10 -8 -6 ------- Run | Yrd Mat Sub Scr Fac Slots Evolved 8 | . . . . 8 Power 1 | . . . . 1 Propulsion 2 | . . . . 2 Utility 4 | . . . . 4 Weapon 1 | . . . . 1 Parts Attached 31 | 7 2 . 3 19 Power 4 | 1 . . . 3 Engine 4 | 1 . . . 3 Core . | . . . . . Reactor . | . . . . . Propulsion 7 | 3 . . . 4 Treads 2 | . . . . 2 Leg 3 | 3 . . . . Wheel 1 | . . . . 1 Hover . | . . . . . Flight 1 | . . . . 1 Utility 9 | 1 2 . 1 5 Device 2 | 1 . . . 1 Storage 1 | . . . 1 . Processor 3 | . . . . 3 Hackware 1 | . 1 . . . Protection 2 | . 1 . . 1 Artifact . | . . . . . Weapon 11 | 2 . . 2 7 Energy Gun 4 | 1 . . 1 2 Energy Cannon . | . . . . . Ballistic Gun 3 | 1 . . 1 1 Ballistic Cannon 3 | . . . . 3 Launcher 1 | . . . . 1 Special Weapon . | . . . . . Impact Weapon . | . . . . . Slashing Weapon . | . . . . . Piercing Weapon . | . . . . . Special Melee Weapon . | . . . . . Unidentified Prototypes 1 | . . . . 1 Parts Lost 14 | . . . . 14 Power 3 | . . . . 3 Propulsion 3 | . . . . 3 Utility 2 | . . . . 2 Weapon 6 | . . . . 6 Highest Loss Streak 9 | . . . . 9 To Critical Strikes . | . . . . . Average Backups 6 | 2 5 5 7 4 Power 1 | . 1 1 1 1 Propulsion 1 | 1 2 2 2 . Utility 1 | . . . 2 1 Weapon 2 | . 1 2 2 . Tool/Special . | . . . . . Unused Backups 5 | . 1 . 1 3 Power 2 | . . . . 2 Propulsion 1 | . 1 . . . Utility . | . . . . . Weapon 2 | . . . 1 1 Tool/Special . | . . . . . Average Slot Usage (%) 89 | . 95 100 100 45 Engine 12 | . 14 14 14 4 Leg 23 | . 28 28 28 6 Storage 9 | . . . 13 2 Processor 1 | . . . . 6 Hackware 1 | . 9 14 . . Protection 11 | . 3 14 14 2 Energy Gun 11 | . 14 14 14 3 Ballistic Gun 11 | . 14 14 14 2 Ballistic Cannon 1 | . . . . 6 Peak Build Rating 30 | 6 9 9 12 30 Average Rating 11 | 4 8 9 10 17 On Entrance 7 | . 6 9 9 12 Avg Prop Armor Cover (%) . | . . . . . Naked Turns 69 | . . . . 69 Heaviest Build 34 | 7 9 9 22 34 Greatest Support 40 | 20 20 20 20 40 Greatest Overweight (x) 3 | . . . 1 3 Average Overweight (x) . | . . . . . Largest Inventory Capacity 10 | 5 5 5 10 10 Average Capacity 8 | 5 5 5 9 6 Most Carried 10 | 5 5 5 10 9 Average Carried 6 | 2 4 5 7 4 Final Capacity 10 | 5 5 5 10 5 Final Carried 10 | 5 5 5 10 5 Class Distribution -------------------- 89% | Mutant 5% | Tank 5% | Gunner Dominant Class ---------------- Mutant | -10/Materials Mutant | -10/Subcaves Mutant | -8/Scraptown Mutant | -6/Factory Resources | -11 -10 -10 -8 -6 ----------- Run | Yrd Mat Sub Scr Fac Matter Collected 553 | 265 14 17 30 227 Remotely . | . . . . . Salvage Created 196 | 31 . . . 165 Parts 11 | 5 . . . 6 Haulers Intercepted . | . . . . . Recyclers Shooed . | . . . . . Parts Field Recycled . | . . . . . Retrieved Matter . | . . . . . Parts Self-Destructed 6 | . . 6 . . Prevented . | . . . . . Parts Restored . | . . . . . Kills | -11 -10 -10 -8 -6 ------- Run | Yrd Mat Sub Scr Fac Combat Hostiles Destroyed 6 | 1 . . . 5 Melee 1 | . . . . 1 Guns 2 | 1 . . . 1 Cannons 2 | . . . . 2 AOE 1 | . . . . 1 Classes Destroyed 4 | 1 . . . 3 Worker 1 | . . . . 1 Grunt 4 | 1 . . . 3 Duelist 1 | . . . . 1 Sentry 1 | . . . . 1 Best Kill Streak 4 | 1 . . . 4 Combat Bots Only 4 | 1 . . . 4 Max Kills in Single Turn 1 | 1 . . . 1 Gunslinging . | . . . . . Exploded 1 | . . . . 1 Melee 1 | . . . . 1 Uniques/NPCs Destroyed . | . . . . . Combat | -11 -10 -10 -8 -6 -------- Run | Yrd Mat Sub Scr Fac Hostile Shots Fired 209 | 7 . . . 202 Missed 72 | 3 . . . 69 Hits 137 | 4 . . . 133 Melee 2 | . . . . 2 Projectile 135 | 4 . . . 131 Critical Strikes 3 | . . . . 3 Damage Taken 2352 | 42 . . . 2310 Core 853 | . . . . 853 Absorbed by Shields 50 | . . . . 50 Core Remaining (%) 100 | 100 . . 100 . Volleys Fired 33 | 5 . 1 . 27 Largest 3 | 2 . 2 . 3 Hottest 168 | 70 . 70 . 168 Shots Fired 68 | 10 . 2 . 56 Gun 42 | 10 . 2 . 30 Cannon 23 | . . . . 23 Launcher 3 | . . . . 3 Special . | . . . . . Kinetic 45 | 5 . 1 . 39 Thermal 20 | 5 . 1 . 14 Explosive 3 | . . . . 3 Electromagnetic . | . . . . . Robot Hit Streak 18 | 1 . 3 . 18 Robot Miss Streak 15 | 2 . . . 15 Penetration Max . | . . . . . Secondary Targets . | . . . . . Shots Hit Robots 43 | 4 . 2 . 37 Core Hits 29 | 2 . . . 27 Critical Kills . | . . . . . Critical Parts Destroyed . | . . . . . Critical Strikes 1 | 1 . . . . Burn 1 | 1 . . . . Melee Attacks . | . . . . . Impact . | . . . . . Slashing . | . . . . . Piercing . | . . . . . Sneak Attacks . | . . . . . Combat Hostiles . | . . . . . Follow-up Attacks . | . . . . . Damage Inflicted 904 | 52 . 18 . 834 Guns 377 | 52 . 18 . 307 Cannons 322 | . . . . 322 Explosions 175 | . . . . 175 Melee . | . . . . . Ramming 30 | . . . . 30 Kinetic 486 | 15 . 6 . 465 Thermal 310 | 37 . 12 . 261 Explosive 78 | . . . . 78 Electromagnetic . | . . . . . Impact . | . . . . . Slashing . | . . . . . Piercing . | . . . . . Highest Corruption . | . . . . . Average Corruption . | . . . . . Corruption Purged . | . . . . . Corruption Blocked . | . . . . . Overload Shots . | . . . . . Overflow Damage 77 | . . . . 77 Projectiles . | . . . . . Explosions 77 | . . . . 77 Melee . | . . . . . Knockbacks 8 | . . . . 8 Impact . | . . . . . Kinetic 8 | . . . . 8 Secondary . | . . . . . Self-Inflicted Damage 104 | . . . . 104 Shots 1 | . . . . 1 Rammed 5 | . . . . 5 Targets Rammed 9 | . . . . 9 Kicked 3 | . . . . 3 Crushed 1 | . . . . 1 Highest Temperature 404 | 108 . . . 404 Average Temperature 64 | 61 . . . 64 Received Heat Transfer 866 | 24 . . . 842 Siege Activations . | . . . . . Martial Activations . | . . . . . Shielding Activations . | . . . . . Robots Disrupted . | . . . . . Combat Hostiles . | . . . . . Robots Corrupted . | . . . . . Combat Hostiles . | . . . . . Parts Fried . | . . . . . Impact Corruptions . | . . . . . Robots Melted . | . . . . . Combat Hostiles . | . . . . . Parts Melted . | . . . . . Heat Transferred 680 | 185 . 37 . 458 Parts Sabotaged 3 | . . . . 3 Parts Stolen . | . . . . . Parts Stripped . | . . . . . Power Chain Reactions . | . . . . . Alert | -11 -10 -10 -8 -6 ------- Run | Yrd Mat Sub Scr Fac Maximum Alert Level . | . . . . . Low Security (%) 100 | 100 100 . . 100 Level 1 . | . . . . . Level 2 . | . . . . . Level 3 . | . . . . . Level 4 . | . . . . . Level 5 . | . . . . . High Security . | . . . . . Max Security . | . . . . . Peak Influence 121 | 10 2 . . 121 Initial . | . . . . . Average 22 | 1 . . . 32 Influence Increases 286 | 20 2 . . 264 Destroy 0b10 Robot/C 120 | 20 . . . 100 Destroy 0b10 Robot/NC 5 | . . . . 5 Destroy Leader 20 | . . . . 20 Successful Hack 2 | . 2 . . . Disable Machine 30 | . . . . 30 Destroy Structure 34 | . . . . 34 Lose Combat Pursuer 75 | . . . . 75 Influence Decreases 218 | 20 2 . . 196 Time Decay 162 | 20 2 . . 140 Lost Part 56 | . . . . 56 Squads Dispatched 4 | . . . . 4 Investigation . | . . . . . Extermination . | . . . . . Reinforcement 1 | . . . . 1 Assault 2 | . . . . 2 Garrison 1 | . . . . 1 Intercept . | . . . . . Searches Triggered . | . . . . . Construction Impeded 1 | . . . . 1 Haulers Reinforced . | . . . . . Active Scanning Responses . | . . . . . Cargo Convoy Interrupts . | . . . . . Stealth | -11 -10 -10 -8 -6 --------- Run | Yrd Mat Sub Scr Fac Distress Signals . | . . . . . Communications Jammed . | . . . . . Distress Signals . | . . . . . Times Spotted 30 | 1 1 . . 28 Peak Tracking Total 11 | 1 1 . . 11 Tactical Retreats 3 | . . . . 3 Traps | -11 -10 -10 -8 -6 ------- Run | Yrd Mat Sub Scr Fac Traps Triggered 1 | . . . . 1 Indirectly . | . . . . . Trap Hack Attempts . | . . . . . Triggered . | . . . . . Disarmed . | . . . . . Reprogrammed . | . . . . . Reused . | . . . . . Traps Extracted . | . . . . . Installed . | . . . . . Triggered . | . . . . . Machines | -11 -10 -10 -8 -6 ---------- Run | Yrd Mat Sub Scr Fac Machines Disabled 2 | . . . . 2 Max in Single Turn 2 | . . . . 2 Garrison Access 1 | . . . . 1 Machines Repaired . | . . . . . Machines Dismantled . | . . . . . Machines Sabotaged . | . . . . . Overloaded Fab Kills . | . . . . . Hacking | -11 -10 -10 -8 -6 --------- Run | Yrd Mat Sub Scr Fac Machines Accessed 1 | . 1 . . . Terminals 1 | . 1 . . . Fabricators . | . . . . . Repair Stations . | . . . . . Recycling Units . | . . . . . Scanalyzers . | . . . . . Garrison Access . | . . . . . Total Hacks 5 | . 5 . . . Successful 4 | . 4 . . . Failed 1 | . 1 . . . Catastrophic . | . . . . . Database Lockouts . | . . . . . Manual 5 | . 3 . 1 1 Terminals 5 | . 5 . . . Fabricators . | . . . . . Repair Stations . | . . . . . Recycling Units . | . . . . . Scanalyzers . | . . . . . Garrison Access . | . . . . . Terminal Hacks 4 | . 4 . . . Record 2 | . 2 . . . Prototype ID Bank 1 | . 1 . . . Maintenance Status 1 | . 1 . . . Fabricator Hacks . | . . . . . Repair Station Hacks . | . . . . . Recycling Unit Hacks . | . . . . . Scanalyzer . | . . . . . Garrison Access Hacks . | . . . . . Unauthorized Hacks . | . . . . . Terminals . | . . . . . Fabricators . | . . . . . Repair Stations . | . . . . . Recycling Units . | . . . . . Scanalyzers . | . . . . . Garrison Access . | . . . . . Data Cores Recovered 1 | . 1 . . . Used . | . . . . . Hacking Detections . | . . . . . Full Trace Events . | . . . . . Feedback Events . | . . . . . Feedback Blocked . | . . . . . Robot Schematics Acquired . | . . . . . Robots Built . | . . . . . Authchips . | . . . . . Time . | . . . . . Total Robot Build Rating . | . . . . . Part Schematics Acquired . | . . . . . Parts Built . | . . . . . Authchips . | . . . . . Time . | . . . . . Total Part Build Rating . | . . . . . Part Studies Acquired . | . . . . . Parts Repaired . | . . . . . Time . | . . . . . Parts Recycled . | . . . . . Recycled Matter . | . . . . . Retrieved Matter . | . . . . . Retrieved Components . | . . . . . Parts Scanalyzed . | . . . . . Part Schematics Acquired . | . . . . . Parts Damaged . | . . . . . Bothacking | -11 -10 -10 -8 -6 ------------ Run | Yrd Mat Sub Scr Fac Used RIF Installer . | . . . . . Robots Hacked . | . . . . . Non-combat . | . . . . . Combat . | . . . . . Robot Hacks Applied . | . . . . . Relay Couplers Released 3 | . . . . 3 Machine Destruction 3 | . . . . 3 Fabnet Peak Effective % . | . . . . . Robots Rewired . | . . . . . Allies Hacked . | . . . . . Hacks Repelled . | . . . . . Allies | -11 -10 -10 -8 -6 -------- Run | Yrd Mat Sub Scr Fac Total Allies . | . . . . . Largest Group . | . . . . . Highest-Rated Group . | . . . . . Highest-Rated Ally . | . . . . . Total Orders . | . . . . . Ally Attacks . | . . . . . Total Damage . | . . . . . Kills . | . . . . . Allies Corrupted . | . . . . . Allies Melted . | . . . . . Intel | -11 -10 -10 -8 -6 ------- Run | Yrd Mat Sub Scr Fac Active Infowar (turns) 237 | . . . . 237 Optics 237 | . . . . 237 Robot Analysis Total . | . . . . . Derelict Logs Recovered . | . . . . . Drone Launches . | . . . . . Drone Recoveries . | . . . . . Exploration | -11 -10 -10 -8 -6 ------------- Run | Yrd Mat Sub Scr Fac Turns Passed 3293 | 165 109 223 2181 615 Spaces Moved 1948 | 128 83 176 1169 392 Core 156 | 23 . . . 133 Treads 120 | . . . . 120 Legs 1663 | 105 83 176 1169 130 Wheels 9 | . . . . 9 Hover . | . . . . . Flight . | . . . . . Fastest Speed 50 | 50 120 120 120 50 Average Speed 159 | 107 120 120 185 123 Slowest Speed 240 | 120 120 120 190 240 Overloaded Moves . | . . . . . Propulsion Burnouts . | . . . . . Robots Hopped . | . . . . . Potential Cave-ins . | . . . . . Cave-ins Triggered . | . . . . . Exploration Rate (%) 17 | 6 11 12 52 8 Regions Visited 4 Branch Regions 2 Pre-discovered Areas 1 | . . . 1 . Known Exits Taken . | . . . . . Unknown Exits Taken 4 | 1 1 1 1 . Scrap Searched 3 | . . . 3 . Spaces Dug . | . . . . . Terrain Destroyed 56 | . . . . 56 Melee . | . . . . . Projectile . | . . . . . AOE 56 | . . . . 56 Terrain Rammed . | . . . . . Walls Destroyed . | . . . . . Machines Disabled . | . . . . . Actions | -11 -10 -10 -8 -6 --------- Run | Yrd Mat Sub Scr Fac Total 2067 | 143 92 186 1182 464 Wait 18 | . 5 10 . 3 Move 1944 | 127 82 175 1168 392 Hop . | . . . . . Pick Up 18 | 4 1 . 6 7 Fast Attach 19 | 6 2 . 3 8 Attach 12 | . . . . 12 Detach 5 | . . . 2 3 Swap 1 | 1 . . . . Drop 8 | . 2 . 3 3 Fire 33 | 5 . 1 . 27 Melee . | . . . . . Ram 2 | . . . . 2 Kick 3 | . . . . 3 Crush 4 | . . . . 4 Escape Stasis . | . . . . . Rewire . | . . . . . Trap . | . . . . . Miscellaneous . | . . . . . Route ------- -11/Scrapyard -10/Materials -10/Subcaves -8/Scraptown -6/Factory History --------- Turn | Location | Event 2 | -11/Scrapyard | Met Revision 17 96 | -11/Scrapyard | Discovered new exit (range 8) 166 | -11/Scrapyard | Entered Materials 167 | -10/Materials | Met a group of wandering Federalists 190 | -10/Materials | Discovered new exit (range 9) 275 | -10/Materials | Entered Subcaves 276 | -10/Subcaves | Continued accompanying wandering Federalists (6) 307 | -10/Subcaves | Build established: Mutant 481 | -10/Subcaves | Wandering Federalist uncovered a shortcut to Scraptown 498 | -10/Subcaves | Entered Scraptown 724 | -8/Scraptown | Learned location of Extension (-6) 774 | -8/Scraptown | Visited Comm Corps 907 | -8/Scraptown | Visited CPS Storage 1017 | -8/Scraptown | Discovered new exit (range 11) 1118 | -8/Scraptown | Heard Great Nut preacher, LISTEN AND RECITE! 1463 | -8/Scraptown | Visited Cyclists 1501 | -8/Scraptown | Visited Fellowship of the Rings 2679 | -8/Scraptown | Entered Factory 2679 | -6/Factory | Evolved 8 slots: Power x1, Propulsion x2, Utility x4, Weapon x1 2917 | -6/Factory | Released all parts (4) 2943 | -6/Factory | Lost 9 parts (1p2n2u4w) 2994 | -6/Factory | Core integrity fell below 50% 3028 | -6/Factory | Lost 3 parts (1p1n1w) 3256 | -6/Factory | Core integrity fell below 20% 3256 | -6/Factory | Released all parts (2) 3294 | -6/Factory | Destroyed by Y-54 Guardian with Gatling Laser Last Messages --------------- 03249_ Acquired 31 matter. 03250_ Imp. Deuterium Engine destroyed. 03251_ C-45 Heavy ARC bursts open, deploying its payload. 03251_ G-67 Veteran unfolds itself. 03251_ G-50 Soldier unfolds itself. 03251_ E-15 Imp unfolds itself. 03251_ Slammed into G-50 Soldier. 03252_ Acquired 105 matter. 03252_ Slammed into G-50 Soldier. 03253_ Hvy. Flak Cannon blown off. 03253_ Lgt. Treads blown off. 03253_ E-15 Imp destroyed. 03255_ K-01 Serf collects debris. 03256_ Released Imp. Terrain Scan Processor. 03256_ Released Adv. Signal Interpreter. 03257_ Slammed into T-07 Excavator. 03260_ K-01 Serf collects debris. 03262_ T-07 Excavator destroyed. 03278_ ALERT: Security rotation in progress. Map ----- +----------------------------------------------------+ | ?????????????????????????????????????????????????? | | ?????????????????????????????????????????????????? | | ?????????????????????????????????????????????????? | | ?????????????????????????????????????????????????? | | ?????????????????????????????????????????????????? | | ?????????????????????????????????????????????????? | | ?????????????????????????????????????????????????? | | ?????????????????????????????????????????????????? | | ?????????????????????????????????????????????????? | | ?????????????????????????????????????????????????? | | ?????????????????????????????????????????????????? | | ?????????????????????????????????????????????????? | | ?????????????????????????????????????????????????? | | ?????????????????????????????????????????????????? | | ?????????????????????????????????????????????????? | | ?????????????????????????????????????????????????? | | ?????????????????????????????????????????????????? | | ?????????????????????????????????????????????????? | | ?????????????????????????????????????????????????? | | ?????????????????????????????????????????????????? | | ??????????????# ?????????????????????????????????? | | ??????????????# ???????????????????????????????? | | ??????????????# ????##############???????????? | | ??????????????# ??# """" #???????????? | | ??????????????# # "F " #???????????? | | ??????????????# /@ """ #???????????? | | ?????????? # """ #???????????? | | ?????????? ! Y ??# ! """ #???????????? | | ??????????? ????# "" #???????????? | | ??????????? ####??????# "" #???????????? | | ????????????????????????# #???????????? | | ????????????????????????# #???????????? | | ????????????????????????#[ #???????????? | | ????????????????????????# #???????????? | | ????????????????????????# #???????????? | | ????????????????????????###g##########???????????? | | ??????????????????????????# #????????????????????? | | ??????????????????????????#g#????????????????????? | | ??????????????????????????#g#????????????????????? | | ?????????????########+##### #????????????????????? | | ?????????????# ##???????????????????? | | ?????????????# #???????????????????? | | ?????????????# +???????????????????? | | ?????????????# #???????????????????? | | ?????????????# ### ##???????????????????? | | ?????????????# ?##+########?????????????? | | ???????????? ??# [ #?????????????? | | ????????????? ??# #?????????????? | | ?????????????######## ???# #?????????????? | | ????????????????????#????# != #?????????????? | +----------------------------------------------------+ Best States ------------- Heat Dissipation 37 Energy Generation 16 Energy Capacity 290 Matter Stores 300 Matter Capacity 300 Sight Range 18 Terrain Scan Density 110 Armor Coverage 150 Weapon Shielding 33 Evasion (%) 55 Recoil Reduction 2 Offensive Hacking 10 Item Schematics ----------------- None Robot Schematics ------------------ None Fabricated ------------ Nothing Repaired ---------- Nothing Studied --------- None Alien Tech Used ----------------- None Achievements -------------- Live, Flee, And Rebuild More Dakka Please Oops Strength In Numbers Challenges ------------ None Game ------ Seed ZioniteModifiedHarness Manual? 0 Play Time 00:37:05 Cumulative 3.4 hours Start 2025.11.02 @ 07:52:17 End 2025.11.02 @ 08:31:26 Sessions 1 Manual Loads 0 Difficulty Rogue Special Mode None Game No. 4 Rogue 4 Adventurer 0 Explorer 0 Win Type - Total 0 Types 0/0/0/0/0/0/0/0/0/0 Lore% 6 Gallery% 6 Achievement% 6 Wizard Run 0 Options --------- Layout 1 ASCII 0 Keyboard 1 Movement Vi Keybinds 0 Fullscreen 2 Font 36/Smallcaps Map View 53x45 Zoom Use 0% Tactical HUD 1 Map Filters NONE Filters NONE Steam 1 RUN: bd3034b7-1a71-442c-9757-adcecd94c8af